bitfinex/quotes_ETHUSD_20241217
["timestamp","ask_amount","ask_price","bid_price","bid_amount"]
[1734449125833,0.5,3941.8,3940.1,1.625]
[1734449126123,2.53613,3943.1,3940.0,0.12685578]
[1734449126124,0.25,3943.2,3940.2,0.01270234]
[1734449126330,0.25,3943.8,3940.3,1.625]
[1734449126525,0.25,3944.1,3940.5,1.625]
[1734449126686,0.25,3945.1,3940.8,1.23460589]
[1734449126888,0.25,3945.2,3940.8,1.23460589]
[1734449126889,0.25,3945.2,3941.0,1.625]
[1734449127143,0.25,3945.2,3941.3,4.625]
[1734449127288,0.25,3945.2,3941.4,1.625]
[1734449127487,0.25,3945.0,3943.4,1.625]
[1734449127826,0.4625,3945.2,3943.5,0.55]
[1734449128015,0.4625,3945.2,3943.6,1.625]
[1734449128210,0.25,3945.2,3943.6,1.625]
[1734449128598,0.50975874,3945.4,3943.7,0.55]
[1734449128800,0.5,3945.6,3943.9,0.55]
[1734449129131,0.25,3945.4,3943.9,0.55]
[1734449129347,0.25975958,3945.5,3943.9,0.55]
[1734449129648,0.25,3945.4,3943.9,0.55]
[1734449129789,0.25975958,3945.5,3943.9,0.55]
[1734449129993,0.25975958,3945.5,3945.0,10.0]
[1734449130234,0.25,3945.4,3945.0,8.12427358]
[1734449130589,0.5,3945.4,3945.0,8.12427358]
[1734449131140,0.5,3945.4,3945.0,5.31025025]
[1734449131141,0.25,3945.1,3945.0,5.31025025]
[1734449131353,0.25,3945.1,3945.0,0.02042082]
[1734449131354,1.875,3945.1,3945.0,0.02042082]
[1734449131506,2.14834982,3945.1,3945.0,0.02042082]
[1734449132101,4.68312982,3945.1,3945.0,0.02042082]
[1734449132528,0.25,3944.1,3943.2,1.6158]
[1734449132896,0.5,3944.1,3943.2,1.6158]
[1734449133102,0.25,3943.9,3943.2,1.6158]
[1734449133303,0.5,3944.1,3943.2,1.6158]
[1734449133626,1.86665643,3945.1,3943.2,1.6158]
[1734449133627,0.5,3943.9,3943.2,1.6158]
[1734449133828,0.25,3944.3,3943.2,1.6158]
[1734449134038,1.86665643,3945.1,3943.2,1.6158]
[1734449134039,0.25,3944.7,3943.2,1.6158]
[1734449134223,0.25,3945.3,3943.2,1.77738]
[1734449134555,0.25987834,3945.4,3943.2,1.77738]
[1734449134741,0.25987834,3945.4,3943.4,1.6158]
[1734449134911,0.25,3945.8,3944.4,1.6158]
[1734449135246,0.0654373,3946.0,3944.6,1.6158]
[1734449135417,0.0654373,3946.0,3944.8,1.6158]
[1734449135807,0.3154373,3946.0,3944.8,1.6158]
[1734449136037,0.25,3945.8,3944.8,1.6158]
[1734449136220,0.0654373,3946.0,3944.8,1.6158]
[1734449136743,0.0654373,3946.0,3944.9,3.0]
[1734449136929,0.0654373,3946.0,3944.8,1.6158]
[1734449137607,0.25,3945.8,3944.8,1.6158]
[1734449137821,0.5,3945.8,3944.8,1.6158]
[1734449138413,0.5,3945.8,3941.6,1.22358203]
[1734449138414,0.5,3945.5,3944.2,1.6158]
[1734449138740,0.09712018,3946.0,3940.0,2.60921404]
[1734449138741,0.25,3944.8,3943.1,1.6158]
[1734449138934,0.25,3945.0,3943.3,0.12451078]
[1734449139123,0.5,3945.0,3943.3,0.12451078]
[1734449139449,0.25,3945.0,3943.4,1.6158]
[1734449139979,0.25,3944.9,3943.4,1.6158]
[1734449140151,0.25,3945.3,3943.4,1.6158]
[1734449140331,0.09712569,3946.0,3943.6,1.6158]
[1734449140332,0.25,3945.7,3943.6,1.6158]
[1734449140524,0.25,3945.5,3943.6,1.6158]
[1734449140727,0.25,3945.3,3943.6,1.6158]
[1734449140924,0.25,3945.0,3943.6,1.6158]
[1734449141147,0.25,3944.8,3943.6,1.6158]
[1734449141650,0.25,3944.6,3943.6,1.6158]
[1734449141852,0.25,3944.6,3941.5,0.96669]
[1734449141853,0.25,3944.3,3943.0,1.6158]
[1734449142009,0.5,3944.0,3942.9,0.12923199]
[1734449142737,0.25,3943.8,3942.5,1.6158]
[1734449143720,0.25,3943.6,3942.5,1.6158]
[1734449144062,0.25,3943.8,3942.5,1.6158]
[1734449144063,0.25,3943.4,3942.5,1.6158]
[1734449144432,0.25958994,3943.6,3942.5,1.6158]
[1734449144667,0.21345899,3943.5,3942.5,1.6158]
[1734449145165,0.46345899,3943.5,3942.5,1.6158]
[1734449145314,0.71345899,3943.5,3942.5,1.6158]
[1734449145516,0.71345899,3943.5,3939.7,1.23290515]
[1734449145517,0.25,3943.3,3939.7,1.23290515]
[1734449145715,0.25,3943.3,3939.9,1.6158]
[1734449145960,0.25,3943.3,3939.4,0.11368026]
[1734449145961,0.25,3942.5,3940.1,1.6158]
[1734449146144,0.5,3942.5,3940.3,1.5933]
[1734449146525,0.5,3942.5,3940.4,0.01269285]
[1734449146706,0.03170863,3943.0,3940.4,0.01269285]
[1734449146707,0.25,3942.2,3940.4,0.01269285]
[1734449147861,0.25,3942.2,3940.4,0.56269285]
[1734449148151,0.25,3942.0,3940.5,0.21559929]
[1734449148349,1.577,3942.1,3941.0,3.0]
[1734449148548,1.577,3942.1,3941.1,0.01269058]
[1734449149041,1.577,3942.1,3940.6,0.0126997]
[1734449149263,0.25,3942.0,3940.6,0.14207477]
[1734449149461,0.1827,3941.9,3940.9,3.0]
[1734449150098,0.25,3942.2,3941.0,0.01270123]
[1734449150317,1.577,3942.6,3941.0,0.56270123]
[1734449150533,1.577,3942.6,3941.0,3.56269674]
[1734449150662,1.577,3942.6,3941.1,1.5933]
[1734449150862,1.827,3942.6,3941.2,0.0126921]
[1734449151097,1.827,3942.6,3941.1,1.60599212]
[1734449151098,0.2077,3942.5,3941.1,1.60599212]
[1734449151490,1.827,3942.6,3941.2,0.55]
[1734449151797,1.827,3942.6,3941.1,1.5933]
[1734449152232,0.25,3942.4,3941.1,1.5933]
[1734449153279,0.25,3942.4,3941.3,3.0]
[1734449153479,0.25,3942.4,3941.1,1.5933]
[1734449154111,1.827,3942.6,3941.1,1.5933]
[1734449154312,0.4577,3942.5,3941.1,1.5933]
[1734449154476,0.4577,3942.5,3941.3,3.0]
[1734449154477,0.2077,3942.5,3941.3,3.0]
[1734449155120,0.2077,3942.5,3941.1,1.5933]
[1734449155340,0.25,3942.3,3941.1,1.5933]
[1734449156124,0.25,3942.3,3940.7,0.56269816]
[1734449156283,0.25,3942.3,3940.7,0.55]
[1734449156679,0.25,3942.1,3940.6,1.72267507]
[1734449157707,0.25,3941.9,3940.6,1.72267507]
[1734449157908,0.25,3941.6,3940.6,1.72267507]
[1734449158308,0.25,3941.9,3940.6,1.72267507]
[1734449158511,0.25,3941.7,3940.6,1.72267507]
[1734449158712,0.4581,3942.5,3940.6,1.72267507]
[1734449158713,0.5,3942.2,3940.7,0.56270098]
[1734449158920,0.25,3942.0,3940.7,0.56270098]
[1734449159798,0.25,3942.0,3940.6,1.72267507]
[1734449159799,0.5,3942.0,3940.6,1.72267507]
[1734449160121,0.5,3942.2,3940.7,0.55]
[1734449160527,0.25,3942.0,3940.7,0.56269852]
[1734449160821,0.25,3942.0,3940.7,0.56269856]
[1734449161222,0.25,3942.0,3940.7,0.55]
[1734449161397,0.25,3942.0,3940.7,0.56269857]
[1734449161602,0.5,3942.0,3940.6,1.72267507]
[1734449162015,0.5,3942.0,3940.7,3.0]
[1734449162623,0.25,3942.0,3940.6,1.72267507]
[1734449162790,0.25,3942.2,3940.7,0.56269379]
[1734449162994,0.25,3942.4,3940.7,0.56269379]
[1734449163299,0.25,3942.4,3940.7,0.55]
[1734449163300,0.25,3942.2,3940.7,0.55]
[1734449163603,0.25,3941.9,3940.6,0.12937507]
[1734449164149,1.5349,3942.1,3940.6,0.12937507]
[1734449164150,0.25,3941.7,3940.6,0.12937507]
[1734449164352,1.5349,3942.1,3940.6,0.12937507]
[1734449164650,0.25,3942.4,3940.9,0.55]
[1734449164793,0.25,3942.4,3941.0,0.61576919]
[1734449165703,1.7853,3942.5,3941.1,0.55]
[1734449165909,0.2504,3942.5,3941.1,0.55]
[1734449166135,0.2504,3942.5,3942.0,0.55]
[1734449166298,0.2504,3942.5,3941.3,0.55]
[1734449166500,0.2504,3942.5,3941.4,0.57539]
[1734449166804,0.2504,3942.5,3941.2,1.6539]
[1734449166805,0.25,3942.4,3941.2,1.6539]
[1734449167010,0.25,3942.2,3940.7,1.6539]
[1734449167216,0.25,3941.8,3940.6,0.12937507]
[1734449167425,0.25,3941.7,3940.6,0.12937507]
[1734449167699,2.0349,3940.3,3940.2,0.11322889]
[1734449168048,4.60450039,3940.3,3940.2,0.11322889]
[1734449168264,4.60450039,3940.3,3938.3,1.5787598]
[1734449168265,1.5349,3939.0,3938.3,1.5787598]
[1734449168397,0.25,3938.8,3938.3,1.5787598]
[1734449168849,0.5,3938.8,3937.4,1.6539]
[1734449169054,0.5,3938.8,3937.5,0.16539]
[1734449169346,0.25,3938.8,3937.5,0.16539]
[1734449169895,0.03173715,3939.7,3937.6,0.12692271]
[1734449169896,1.5349,3939.4,3937.6,0.12692271]
[1734449170128,0.25,3940.0,3938.8,3.0]
[1734449170397,0.25,3940.0,3937.6,0.12692271]
[1734449170398,1.5349,3939.8,3937.6,0.12692271]
[1734449170596,0.25,3939.6,3937.8,0.55]
[1734449170792,0.25,3939.6,3938.0,0.55]
[1734449171021,0.25,3939.6,3937.9,0.24709529]
[1734449171199,0.25,3939.2,3937.9,0.23435609]
[1734449172222,0.25,3939.2,3938.2,3.0]
[1734449172746,0.25,3938.7,3937.2,1.6539]
[1734449172957,0.42849,3938.7,3937.2,1.6539]
[1734449173158,0.42849,3938.7,3936.8,0.12526878]
[1734449173159,0.25,3937.9,3936.8,0.12526878]
[1734449173457,0.03173784,3938.6,3936.9,0.01276613]
[1734449173458,1.5349,3938.3,3936.9,0.01276613]
[1734449173764,1.7849,3938.8,3936.9,0.01276613]
[1734449173922,1.7849,3938.8,3936.8,0.13802033]
[1734449173923,0.25,3938.5,3936.8,0.13802033]
[1734449174117,0.25,3938.3,3936.8,0.13802033]
[1734449174458,0.25,3938.3,3936.8,0.12526878]
[1734449174919,0.25,3938.3,3936.8,0.13802726]
[1734449175116,0.25,3938.1,3936.8,0.12526878]
[1734449175315,0.25,3938.1,3936.5,1.6539]
[1734449175316,0.25,3937.7,3936.5,1.6539]
[1734449175562,1.5349,3938.0,3936.6,0.17814167]
[1734449175777,1.5349,3938.0,3936.7,0.12547165]
[1734449175980,1.5349,3938.5,3937.0,3.0]
[1734449176126,1.5349,3938.5,3937.1,3.0]
[1734449176447,1.5349,3938.5,3937.3,3.0]
[1734449176645,1.5349,3938.5,3937.1,0.01275068]
[1734449176646,1.5349,3938.5,3937.4,0.30127507]
[1734449176843,1.5349,3938.5,3937.1,0.01275068]
[1734449177275,1.5349,3938.5,3936.8,0.55]
[1734449177276,1.5349,3938.5,3936.8,0.23720768]
[1734449177418,1.625,3939.0,3936.9,1.5251]
[1734449177731,0.25,3939.5,3936.8,0.1110744]
[1734449177732,0.25,3939.4,3938.0,4.5251]
[1734449177946,0.25,3938.7,3936.8,1.5251]
[1734449178149,1.625,3938.6,3936.9,0.169049]
[1734449178782,0.28173736,3938.5,3936.9,0.169049]
[1734449179090,0.25,3938.1,3936.9,0.169049]
[1734449179231,0.0294,3938.1,3937.3,3.0]
[1734449179437,0.0294,3938.1,3936.9,0.169049]
[1734449179731,0.0294,3938.4,3937.3,3.0]
[1734449179930,1.6544,3938.6,3937.0,0.1694149]
[1734449180169,1.6544,3938.6,3937.3,3.0]
[1734449180383,1.6544,3938.6,3937.0,0.1694149]
[1734449180587,1.625,3938.6,3937.4,0.55]
[1734449180886,1.625,3938.6,3937.5,0.355]
[1734449181089,0.0294,3938.1,3937.1,0.12536711]
[1734449181251,0.0294,3937.9,3937.0,0.1694149]
[1734449181560,0.37815699,3940.4,3934.4,0.35033361]
[1734449181561,0.0294,3937.6,3936.0,1.5251]
[1734449182299,0.0294,3937.6,3936.4,0.12567146]
[1734449182498,1.625,3937.8,3936.4,0.12567146]
[1734449182704,0.0294,3937.4,3936.0,1.5251]
[1734449182921,0.0294,3937.4,3936.1,0.15251]
[1734449183219,1.625,3937.8,3936.1,0.15251]
[1734449183220,0.0294,3937.2,3936.1,0.15251]
[1734449183703,0.0294,3937.5,3936.1,0.2821507]
[1734449183866,1.625,3937.8,3936.1,0.2821507]
[1734449184292,0.0294,3937.5,3936.1,0.2821507]
[1734449184493,0.0294,3937.5,3936.2,0.19442911]
[1734449184799,1.625,3937.8,3936.3,0.55]
[1734449185099,1.014775,3939.0,3936.3,0.55]
[1734449185100,1.625,3938.3,3936.3,0.55]
[1734449185279,1.625,3938.9,3938.0,3.0]
[1734449185463,0.25831782,3940.8,3936.7,0.55]
[1734449185464,1.625,3939.5,3938.2,0.55]
[1734449185790,0.25831782,3940.8,3938.1,1.5251]
[1734449185791,1.625,3940.0,3938.4,0.55]
[1734449186356,1.625,3940.7,3938.5,1.5251]
[1734449186573,1.625,3940.7,3938.6,0.55]
[1734449186891,0.0294,3940.6,3938.6,0.55]
[1734449187251,0.0294,3940.4,3938.6,0.55]
[1734449187456,0.0294,3940.4,3938.8,0.55]
[1734449187677,1.625,3940.7,3938.8,0.55]
[1734449187678,0.0294,3940.2,3938.8,0.55]
[1734449187890,0.0294,3939.6,3938.7,0.52171568]
[1734449188074,0.0294,3939.4,3937.6,1.5251]
[1734449188277,1.625,3939.7,3937.6,1.5251]
[1734449188278,0.0294,3939.2,3937.6,1.5251]
[1734449188496,0.0294,3939.6,3937.6,1.5251]
[1734449188912,0.0294,3939.6,3938.0,0.12464709]
[1734449189093,0.0294,3939.0,3938.0,0.12464709]
[1734449189319,0.0294,3938.8,3938.0,0.12464709]
[1734449189663,0.0294,3938.6,3938.0,0.12464709]
[1734449189911,1.6544,3938.6,3938.0,0.12464709]
[1734449190060,1.6544,3938.6,3937.2,0.1343012]
[1734449190061,0.0294,3938.4,3937.2,0.1343012]
[1734449190260,0.0294,3938.2,3937.0,1.5251]
[1734449190495,1.625,3939.3,3937.3,0.12812812]
[1734449190695,0.0294,3939.2,3937.3,0.12812812]
[1734449190923,1.625,3939.3,3937.3,0.12812812]
[1734449190924,0.0294,3938.8,3937.3,0.12812812]
[1734449191221,1.625,3938.1,3936.3,1.5251]
[1734449191521,0.0294,3938.0,3936.4,0.17195291]
[1734449191665,1.625,3938.6,3936.4,0.17195291]
[1734449191865,0.0294,3938.3,3936.5,1.5251]
[1734449192617,1.625,3938.6,3936.6,0.55]
[1734449192764,1.06747601,3940.5,3936.8,1.5251]
[1734449192765,1.625,3939.2,3936.8,1.5251]
[1734449192972,1.625,3939.8,3937.1,0.12494772]
[1734449193291,0.03173154,3940.9,3937.1,0.12494772]
[1734449193292,0.0294,3940.2,3937.6,1.5251]
[1734449193509,0.0294,3940.2,3937.7,0.55]
[1734449193672,0.0294,3940.2,3937.1,0.34554772]
[1734449193673,0.0294,3940.2,3937.9,0.55]
[1734449193872,0.0294,3940.2,3938.1,2.0751]
[1734449194144,0.0294,3940.2,3938.1,0.55]
[1734449194337,0.0294,3940.5,3938.4,1.5251]
[1734449194471,0.0294,3940.5,3938.3,0.55]
[1734449194472,1.625,3940.8,3938.7,3.0]
[1734449194835,0.0294,3940.7,3939.0,0.55]
[1734449194980,1.625,3940.8,3939.3,0.12726649]
[1734449194981,0.0294,3940.5,3939.3,0.12726649]
[1734449195323,0.0294,3939.9,3939.3,0.12726649]
[1734449195622,0.0294,3939.7,3939.1,0.20751]
[1734449195790,0.0294,3939.9,3938.9,0.12745656]
[1734449195971,0.25,3940.4,3939.0,0.55]
[1734449195972,0.2794,3940.4,3939.0,0.55]
[1734449196621,0.0294,3940.4,3939.0,0.55]
[1734449197173,1.625,3940.8,3939.2,0.55]
[1734449197977,0.0294,3941.2,3939.2,0.55]
[1734449198316,1.625,3941.9,3939.6,2.0751]
[1734449198476,0.2504,3942.5,3939.9,1.5251]
[1734449198477,1.625,3942.4,3939.9,1.5251]
[1734449198671,1.625,3942.4,3940.2,0.55]
[1734449199071,0.2504,3942.5,3940.2,0.55]
[1734449199072,0.2504,3942.5,3940.3,1.5251]
[1734449199275,0.2504,3942.5,3940.7,1.5251]
[1734449199516,0.2504,3942.5,3940.9,1.5251]
[1734449199677,0.2504,3942.5,3941.2,0.55]
[1734449199872,0.2504,3942.5,3941.6,0.55]
[1734449200079,0.2504,3942.5,3941.8,0.55]
[1734449201710,1.625,3944.0,3942.0,0.55]
[1734449201919,0.0294,3943.6,3942.2,3.55]
[1734449202222,0.0294,3943.6,3942.2,0.55]
[1734449202818,0.0294,3943.4,3942.2,0.55]
[1734449203017,1.625,3944.0,3942.1,1.5251]
[1734449203018,0.0294,3943.2,3942.1,1.5251]
[1734449203188,0.25,3943.5,3942.1,1.5251]
[1734449203389,1.625,3944.0,3942.1,1.5251]
[1734449203390,0.0294,3943.6,3942.2,0.15251]
[1734449203592,0.0294,3944.0,3942.2,0.15251]
[1734449203990,1.625,3944.5,3942.2,0.15251]
[1734449203991,0.0294,3943.6,3942.2,0.15251]
[1734449204191,0.0294,3943.6,3942.4,0.12436832]
[1734449204388,0.0294,3943.3,3942.4,0.12436832]
[1734449204588,1.625,3943.5,3942.4,0.12436832]
[1734449204589,0.0294,3943.0,3942.4,0.30456615]
[1734449204797,0.0294,3943.0,3941.8,0.13529226]
[1734449204999,1.625,3943.5,3941.6,1.5251]
[1734449205000,0.0294,3942.6,3941.6,1.5251]
[1734449205479,0.25,3943.2,3941.6,1.5251]
[1734449205712,1.625,3943.9,3942.1,1.5251]
[1734449205913,0.0294,3944.4,3942.1,1.5251]
[1734449206134,0.25,3944.3,3942.3,1.6588]
[1734449206284,0.0294,3944.4,3942.3,1.6588]
[1734449206285,0.2794,3944.4,3942.3,1.6588]
[1734449206478,0.0294,3944.1,3942.4,0.55]
[1734449207107,0.0294,3943.9,3942.4,0.55]
[1734449207621,1.625,3944.6,3943.2,3.0]
[1734449207622,0.0294,3943.7,3943.2,3.0]
[1734449207822,0.0294,3943.7,3942.6,0.55]
[1734449208323,0.0294,3943.3,3942.4,0.13572908]
[1734449208487,0.0294,3943.3,3942.2,0.16495647]
[1734449208683,0.0294,3942.9,3942.2,0.16495647]
[1734449208916,0.25,3943.5,3942.0,0.25964772]
[1734449208917,0.0294,3942.7,3942.0,0.25964772]
[1734449209095,0.0294,3942.4,3941.3,1.6588]
[1734449210239,1.625,3943.6,3941.9,0.12393574]
[1734449210411,1.625,3943.6,3942.0,1.6588]
[1734449210598,1.875,3943.6,3942.0,1.6588]
[1734449210797,1.875,3943.6,3942.1,0.55]
[1734449210798,0.0294,3943.5,3942.1,0.55]
[1734449210998,1.875,3943.6,3942.3,0.55]
[1734449211205,0.1625,3944.5,3942.3,0.55]
[1734449211206,0.0294,3943.9,3942.3,0.55]
[1734449211553,1.625,3944.5,3943.4,4.6588]
[1734449211826,0.0294,3943.8,3943.4,3.0]
[1734449212042,0.0294,3944.1,3942.5,1.6588]
[1734449212188,0.0294,3944.0,3942.6,4.0845311]
[1734449212390,0.0294,3944.1,3942.6,4.0845311]
[1734449212794,0.0294,3944.1,3943.1,0.55]
[1734449213194,0.2794,3944.4,3943.1,0.55]
[1734449213406,0.25,3944.2,3943.1,0.55]
[1734449213604,0.0294,3944.4,3943.1,0.55]
[1734449214290,1.625,3944.5,3943.1,0.55]
[1734449214731,1.625,3944.5,3943.3,0.55]
[1734449214913,0.0294,3944.6,3943.5,0.55]
[1734449215229,0.25,3944.8,3943.5,0.55]
[1734449215729,1.6544,3945.1,3943.5,0.55]
[1734449215936,1.9044,3945.1,3943.5,0.55]
[1734449216135,0.0294,3945.0,3943.5,0.68444927]
[1734449216331,0.0294,3943.9,3943.5,0.13444927]
[1734449216532,0.0294,3943.9,3943.0,0.12596228]
[1734449216832,0.70196012,3944.9,3943.1,1.6588]
[1734449217036,0.42256012,3944.9,3943.1,1.6588]
[1734449217233,0.25,3944.8,3943.1,1.6588]
[1734449217534,0.25,3944.8,3944.0,0.12604169]
[1734449218107,0.25,3944.8,3943.3,0.55]
[1734449218336,0.25,3944.6,3943.3,0.55]
[1734449218543,0.25,3944.6,3943.2,0.16588]
[1734449218544,3.0,3947.5,3943.7,0.25]
[1734449218759,0.25881833,3948.2,3942.9,0.13973436]
[1734449218760,2.53455,3945.5,3943.4,0.25]
[1734449219048,0.28514959,3945.4,3943.4,0.25]
[1734449219348,0.03169459,3945.4,3943.0,0.25]
[1734449219559,0.03169459,3945.4,3942.8,0.25]
[1734449219560,0.03169459,3945.4,3943.2,0.25]
[1734449219856,0.1885,3945.5,3943.2,0.25]
[1734449220016,0.1885,3945.3,3943.2,0.25]
[1734449220201,0.1885,3945.3,3943.8,0.25]
[1734449220617,0.1885,3945.3,3944.0,0.25]
[1734449220912,0.13888501,3945.3,3944.7,0.25]
[1734449221147,0.13888501,3945.3,3944.8,0.35]
[1734449221445,0.13888501,3945.3,3944.7,0.25]
[1734449221668,0.13888501,3945.3,3944.5,3.0]
[1734449221807,0.13888501,3945.3,3943.9,0.13311673]
[1734449222003,0.13888501,3945.3,3943.5,0.25]
[1734449222342,0.13888501,3945.3,3940.2,1.26403091]
[1734449222343,0.0316928,3945.2,3943.2,0.25]
[1734449222505,0.0316928,3945.2,3943.3,0.25]
[1734449222705,5.2031,3946.2,3943.3,0.25]
[1734449222706,0.58169631,3946.1,3943.3,0.25]
[1734449222988,0.31157963,3946.0,3943.0,0.25]
[1734449223108,2.53441,3945.7,3943.3,0.25]
[1734449223472,0.03169519,3945.6,3943.3,0.25]
[1734449223745,0.1389,3945.5,3943.3,0.25]
[1734449223917,0.1389,3945.3,3942.8,0.25]
[1734449224117,0.1389,3944.9,3942.2,0.25]
[1734449224348,0.1389,3944.4,3942.4,0.25]
[1734449224553,0.1389,3944.2,3942.4,0.25]
[1734449224736,0.1389,3944.0,3941.5,1.5]
[1734449224938,0.1389,3943.6,3941.4,0.25]
[1734449225149,0.1389,3943.4,3941.4,0.25]
[1734449225305,0.1389,3943.4,3941.7,0.25]
[1734449225504,0.1389,3943.4,3942.4,0.25]
[1734449225934,0.1389,3943.4,3942.0,2.0]
[1734449226155,0.1389,3943.4,3942.4,0.25]
[1734449226507,0.1389,3943.4,3942.5,0.25]
[1734449226743,0.17059838,3945.0,3942.9,0.25]
[1734449227240,0.17059838,3945.0,3943.3,0.25]
[1734449227241,0.17059622,3945.0,3943.3,0.25]
[1734449227405,0.1389,3945.0,3943.3,0.25]
[1734449228325,0.1389,3945.0,3943.6,0.25]
[1734449228527,0.1389,3945.0,3943.8,0.25]
[1734449228726,0.1389,3945.0,3943.4,0.25]
[1734449228925,0.1389,3945.0,3943.6,0.25]
[1734449229139,0.1389,3945.0,3944.0,0.25]
[1734449229535,0.1389,3945.0,3944.1,0.35]
[1734449229742,0.1389,3945.0,3944.0,0.25]
[1734449230029,0.1389,3945.0,3941.5,1.26390245]
[1734449230030,0.1389,3945.0,3943.6,0.25]
[1734449230245,0.1389,3945.0,3943.8,0.25]
[1734449230537,0.1389,3945.0,3943.4,0.25]
[1734449231076,0.1389,3945.0,3943.6,0.25]
[1734449231449,0.1389,3945.0,3943.3,1.6263786]
[1734449231648,0.1389,3945.0,3942.7,0.25]
[1734449231850,2.53498,3944.8,3942.1,1.75]
[1734449232041,2.53524,3944.4,3942.1,1.88710953]
[1734449232238,0.1389,3944.2,3942.1,1.88710953]
[1734449232467,0.1389,3944.0,3942.1,0.25]
[1734449232666,0.1389,3943.8,3942.1,0.25]
[1734449232840,0.17060466,3943.7,3941.7,1.75]
[1734449233051,2.53598,3943.3,3941.7,0.1361406]
[1734449233249,2.669,3944.5,3941.0,0.25]
[1734449233250,0.1389,3943.0,3941.0,0.25]
[1734449233448,0.17061366,3942.9,3941.0,0.25]
[1734449234053,0.17061366,3942.9,3940.4,0.25]
[1734449234381,0.17061366,3942.9,3940.4,0.5]
[1734449234583,0.17061366,3942.9,3940.2,1.5]
[1734449234584,0.1389,3942.8,3940.5,0.2]
[1734449234738,1.02540139,3943.5,3940.0,0.25]
[1734449234739,2.53647,3942.5,3940.0,0.25]
[1734449235075,0.1389,3942.3,3940.2,0.25]
[1734449235240,0.1389,3942.1,3940.2,0.25]
[1734449235447,0.17062001,3942.0,3940.2,0.25]
[1734449235888,0.17062001,3942.0,3940.0,0.25]
[1734449236046,0.17062001,3942.0,3940.0,0.2]
[1734449236242,0.17062001,3942.0,3940.0,0.45]
[1734449236479,0.1389,3942.0,3940.4,0.25]
[1734449236677,0.1389,3942.0,3940.0,0.2]
[1734449236678,0.1389,3942.0,3940.9,0.25]
[1734449236883,0.1389,3942.0,3941.2,0.25]
[1734449237087,0.1389,3942.3,3940.5,0.25]
[1734449237376,0.1389,3942.3,3940.0,0.2]
[1734449237377,0.03171608,3942.2,3940.0,0.45]
[1734449237677,0.1389,3942.1,3940.1,0.23274926]
[1734449237884,0.1389,3941.9,3939.8,0.25]
[1734449238097,0.17062239,3941.8,3940.0,0.25]
[1734449238447,0.1389,3941.8,3940.1,0.25]
[1734449238764,0.1389,3941.8,3940.0,0.5]
[1734449239305,0.1389,3941.8,3940.0,0.25]
[1734449239443,2.05080279,3942.9,3940.0,0.25]
[1734449239444,0.17061925,3941.7,3940.0,0.35120646]
[1734449239639,0.17061925,3941.7,3939.4,1.75]
[1734449239870,0.17061925,3941.7,3939.4,0.38782824]
[1734449240068,0.17061925,3941.7,3939.4,0.25]
[1734449241009,2.12352156,3941.6,3938.7,0.25]
[1734449241194,2.12212649,3941.5,3938.7,0.25]
[1734449241380,0.36602286,3941.4,3938.7,0.45]
[1734449241711,2.38690602,3941.3,3938.7,0.7]
[1734449242089,1.90412495,3941.4,3938.7,0.7]
[1734449242272,0.84806748,3941.3,3938.7,0.45]
[1734449242474,0.8478759,3941.2,3938.7,0.7]
[1734449242704,3.08744,3941.0,3938.8,0.22]
[1734449243019,3.08744,3941.0,3938.0,0.5]
[1734449243020,3.08744,3941.0,3938.2,0.25]
[1734449243526,3.08744,3941.0,3938.0,2.0]
[1734449243701,2.53749,3940.9,3938.0,2.0]
[1734449244169,0.37511388,3941.1,3938.3,0.25]
[1734449244574,0.55,3940.9,3938.0,1.75]
[1734449244795,0.55,3940.9,3937.7,0.25]
[1734449244796,0.55,3940.7,3937.7,0.25]
[1734449245076,2.53798,3940.2,3937.5,1.5]
[1734449245270,3.08764,3940.7,3937.7,0.25]
[1734449245271,2.53784,3940.4,3937.7,0.25]
[1734449245523,3.66461038,3940.2,3937.4,2.62389886]
[1734449245817,3.0,3939.6,3937.4,2.62389886]
[1734449245985,2.5387,3939.1,3937.4,2.62389886]
[1734449246188,2.53873,3939.0,3937.4,2.62389886]
[1734449246695,2.53878,3938.9,3937.4,2.62389886]
[1734449248380,2.53885,3938.8,3937.4,2.62389886]
[1734449248587,0.55,3939.0,3936.2,0.3836274]
[1734449248925,0.55,3939.0,3936.2,0.25]
[1734449249223,3.0,3939.6,3936.2,0.25]
[1734449249224,3.08858,3939.3,3936.2,0.25]
[1734449249509,0.22961647,3938.9,3936.2,0.25]
[1734449250416,0.22961647,3938.9,3936.6,0.25]
[1734449250615,0.22961647,3938.9,3936.8,0.25]
[1734449250913,0.22961647,3938.9,3936.4,1.5]
[1734449250914,0.12983916,3938.7,3936.4,1.5]
[1734449251121,0.12983916,3938.7,3936.5,0.725]
[1734449251614,0.12983916,3938.7,3936.6,0.25]
[1734449251835,0.12983916,3938.7,3936.4,4.5]
[1734449252034,0.12983916,3938.7,3936.4,1.5]
[1734449252234,0.12983916,3938.7,3936.4,1.75]